fUSD/lending_fUSD_20260109
["ID","MTS","AMOUNT","RATE_DAILY","PERIOD"]
[401102109,1767930640593,-504.05178129,0.0001531,2]
[401102111,1767930640603,-1003.57869297,0.0001531,2]
[401102113,1767930640612,-599.35467002,0.0001531,2]
[401102115,1767930640622,-1000.0,0.0001531,2]
[401102117,1767930640632,-1002.23429163,0.0001531,2]
[401102119,1767930640642,-1002.39199871,0.0001531,2]
[401102121,1767930640651,-937.643867,0.0001531,2]
[401102123,1767930640661,-1000.0,0.0001531,2]
[401102125,1767930640673,-3240.0,0.00015334,2]
[401102128,1767930640683,-3841.5,0.0001535,2]
[401102130,1767930640693,-588.84,0.00015383,2]
[401102132,1767930640703,-151.0,0.00015425,2]
[401102134,1767930640713,-151.0,0.00015425,2]
[401102136,1767930640723,-151.0,0.00015429,2]
[401102138,1767930640733,-151.0,0.00015429,2]
[401102139,1767930640743,-151.0,0.00015434,2]
[401102142,1767930640752,-151.0,0.00015434,2]
[401102144,1767930640761,-151.0,0.0001544,2]
[401102146,1767930640771,-151.0,0.0001544,2]
[401102148,1767930640780,-29213.0,0.00015531,2]
[401102150,1767930640789,-588.84,0.00015657,2]
[401102152,1767930640799,-2192.09587896,0.00015672,2]
[401102154,1767930640808,-5977.60630752,0.00015672,2]
[401102156,1767930640817,-255.0,0.0001568,2]
[401102158,1767930640825,-2500.0,0.00015697,2]
[401102160,1767930640835,-50422.27,0.00015784,2]
[401102162,1767930640845,-1500.0,0.00015858,2]
[401102163,1767930640854,-1500.0,0.00015858,2]
[401102166,1767930640864,-705.56277415,0.00015858,2]
[401102168,1767930640874,-1680.0,0.00015906,2]
[401102170,1767930640883,-588.85979464,0.00015931,2]
[401102172,1767930640893,-187.03484206,0.00015954,2]
[401102173,1767930640902,-2192.09587896,0.00016043,2]
[401102176,1767930640912,-5977.60630752,0.00016043,2]
[401102178,1767930640921,-8871.42,0.00016116,2]
[401102180,1767930640930,-150.99,0.00016116,2]
[401102181,1767930640939,-535.58,0.00016116,2]
[401102184,1767930640949,-3157.02,0.00016116,2]
[401102186,1767930640958,-299.99,0.00016116,4]
[401102187,1767930640967,-3841.5,0.00016118,2]
[401102190,1767930640977,-206.86777706,0.00016405,2]
[401102192,1767930640986,-171.84564293,0.00016406,2]
[401102193,1767930640996,-976.09266988,0.00016406,2]
[401102196,1767930641005,-2192.09587896,0.00016415,2]
[401102198,1767930641014,-5977.60630752,0.00016415,2]
[401102199,1767930641027,-500.0,0.00016437,2]
[401102202,1767930641036,-500.0,0.00016437,2]
[401102203,1767930641046,-500.0,0.00016437,2]
[401102205,1767930641055,-322.92952326,0.00016438,2]
[401102207,1767930641066,-532.52780777,0.00016438,2]
[401102210,1767930641075,-500.0,0.00016438,2]
[401102211,1767930641085,-500.0,0.00016438,2]
[401102214,1767930641095,-500.0,0.00016438,2]
[401102215,1767930641104,-500.0,0.00016438,2]
[401102217,1767930641113,-500.0,0.00016438,2]
[401102220,1767930641124,-500.0,0.00016438,2]
[401102222,1767930641133,-500.0,0.00016438,2]
[401102224,1767930641142,-500.0,0.00016438,2]
[401102226,1767930641154,-500.0,0.00016438,2]
[401102228,1767930641163,-500.0,0.00016438,2]
[401102230,1767930641172,-500.0,0.00016438,2]
[401102232,1767930641181,-500.0,0.00016438,2]
[401102234,1767930641191,-500.0,0.00016438,2]
[401102236,1767930641200,-500.0,0.00016438,2]
[401102238,1767930641209,-500.0,0.00016438,2]
[401102240,1767930641218,-500.0,0.00016438,2]
[401102242,1767930641227,-500.0,0.00016438,2]
[401102244,1767930641236,-639.35934116,0.00016438,2]
[401102246,1767930641245,-791.3,0.00016438,2]
[401102248,1767930641254,-422.58,0.00016438,2]
[401102250,1767930641263,-422.58,0.00016438,2]
[401102252,1767930641272,-422.58,0.00016438,2]
[401102254,1767930641282,-422.58,0.00016438,2]
[401102256,1767930641291,-422.58,0.00016438,2]
[401102258,1767930641301,-422.58,0.00016438,2]
[401102259,1767930641310,-422.58,0.00016438,2]
[401102262,1767930641320,-422.58,0.00016438,2]
[401102264,1767930641329,-422.58,0.00016438,2]
[401102265,1767930641338,-422.58,0.00016438,2]
[401102300,1767930641655,-422.58,0.00016438,2]
[401102302,1767930641665,-422.58,0.00016438,2]
[401102304,1767930641674,-422.58,0.00016438,2]
[401102306,1767930641684,-422.58,0.00016438,2]
[401102308,1767930641693,-422.58,0.00016438,2]
[401102310,1767930641702,-422.58,0.00016438,2]
[401102312,1767930641711,-422.58,0.00016438,2]
[401102314,1767930641720,-422.58,0.00016438,2]
[401102316,1767930641730,-422.58,0.00016438,2]
[401102318,1767930641743,-422.58,0.00016438,2]
[401102320,1767930641752,-422.58,0.00016438,2]
[401102323,1767930641762,-422.58,0.00016438,2]
[401102324,1767930641771,-422.58,0.00016438,2]
[401102327,1767930641780,-422.74119631,0.00016438,2]
[401102329,1767930641789,-500.0,0.00016438,2]
[401102331,1767930641799,-500.0,0.00016438,2]
[401102333,1767930641809,-500.0,0.00016438,2]
[401102335,1767930641819,-500.0,0.00016438,2]
[401102337,1767930641828,-500.0,0.00016438,2]
[401102339,1767930641837,-500.0,0.00016438,2]
[401102341,1767930641847,-500.0,0.00016438,2]
[401102343,1767930641856,-500.0,0.00016438,2]
[401102345,1767930641865,-500.0,0.00016438,2]
[401102347,1767930641875,-489.21308769,0.00016438,2]
[401102348,1767930641884,-500.0,0.00016438,2]
[401102351,1767930641893,-500.0,0.00016438,2]
[401102353,1767930641903,-802.78621934,0.00016438,2]
[401102355,1767930641913,-150.0,0.00016505,2]
[401102357,1767930641923,-5530.0,0.000166,3]
[401102359,1767930641932,-791.3,0.00016712,2]
[401102361,1767930641942,-158.57,0.00016712,2]
[401102363,1767930641951,-2192.09587896,0.00016786,2]
[401102365,1767930641960,-5977.60630752,0.00016786,2]
[401102367,1767930641970,-709.84,0.00016809,2]
[401102369,1767930641980,-1000.0,0.00016824,2]
[401102371,1767930641989,-3841.5,0.00016885,2]
[401102373,1767930641998,-433.0,0.00016889,2]
[401102374,1767930642007,-5534.0,0.000169,5]
[401102376,1767930642020,-157.78803463,0.00016954,2]
[401102377,1767930642030,-791.3,0.00016986,2]
[401102378,1767930642040,-419.81,0.00017,2]
[401102379,1767930642050,-482.72,0.00017041,2]
[401102380,1767930642060,-482.82,0.00017041,2]
[401102381,1767930642070,-482.82,0.00017041,2]
[401102382,1767930642079,-482.82,0.00017041,2]
[401102383,1767930642090,-1247.59056919,0.00017099,2]
[401102384,1767930642099,-1020.08839075,0.00017099,2]
[401102385,1767930642109,-738.86836841,0.00017099,2]
[401102386,1767930642119,-334.5472959,0.00017099,2]
[401102387,1767930642128,-578.20924308,0.00017099,2]
[401102388,1767930642137,-151.0,0.00017099,2]
[401102390,1767930642146,-817.14196005,0.00017099,2]
[401102392,1767930642156,-322.6107,0.00017099,2]
[401102394,1767930642166,-620.0,0.00017099,2]
[401102396,1767930642175,-1500.0,0.00017099,2]
[401102398,1767930642186,-1771.03382657,0.00017099,2]
[401102400,1767930642195,-1500.0,0.00017099,2]
[401102402,1767930642205,-1500.0,0.00017099,2]
[401102404,1767930642214,-1500.0,0.00017099,2]
[401102406,1767930642224,-1500.0,0.00017099,2]
[401102408,1767930642233,-1500.0,0.00017099,2]
[401102410,1767930642242,-1500.0,0.00017099,2]
[401102412,1767930642251,-621.78361711,0.00017099,2]
[401102414,1767930642260,-2000.0,0.00017099,2]
[401102416,1767930642270,-2000.0,0.00017099,2]
[401102418,1767930642279,-1628.02313146,0.00017099,2]
[401102420,1767930642288,-500.0,0.00017099,2]
[401102422,1767930642297,-500.0,0.00017099,2]
[401102424,1767930642307,-500.0,0.00017099,2]
[401102426,1767930642316,-500.0,0.00017099,2]
[401102428,1767930642328,-500.0,0.00017099,2]
[401102430,1767930642337,-264.02807282,0.00017099,2]
[401102432,1767930642346,-500.0,0.00017099,2]
[401102434,1767930642355,-500.0,0.00017099,2]
[401102436,1767930642365,-500.0,0.00017099,2]
[401102438,1767930642374,-500.0,0.00017099,2]
[401102440,1767930642383,-500.0,0.00017099,2]
[401102441,1767930642392,-500.0,0.00017099,2]
[401102443,1767930642401,-481.23946277,0.00017099,2]
[401102445,1767930642410,-553.64373807,0.00017099,2]
[401102447,1767930642420,-500.0,0.00017099,2]
[401102449,1767930642428,-500.0,0.00017099,2]
[401102451,1767930642438,-500.0,0.00017099,2]
[401102453,1767930642447,-250.0,0.00017099,2]
[401102454,1767930642458,-500.0,0.00017099,2]
[401102456,1767930642469,-250.0,0.00017099,2]
[401102458,1767930642478,-500.0,0.00017099,2]
[401102460,1767930642488,-250.0,0.00017099,2]
[401102462,1767930642499,-500.0,0.00017099,2]
[401102464,1767930642508,-250.0,0.00017099,2]
[401102466,1767930642518,-500.0,0.00017099,2]
[401102468,1767930642527,-250.0,0.00017099,2]
[401102470,1767930642537,-500.0,0.00017099,2]
[401102472,1767930642546,-250.0,0.00017099,2]
[401102474,1767930642555,-500.0,0.00017099,2]
[401102476,1767930642564,-250.0,0.00017099,2]
[401102478,1767930642574,-500.0,0.00017099,2]
[401102480,1767930642583,-270.69457066,0.00017099,2]
[401102482,1767930642592,-353.83614123,0.00017099,2]
[401102484,1767930642602,-2192.09587896,0.00017157,2]
[401102486,1767930642611,-5977.60630752,0.00017157,2]
[401102488,1767930642619,-200.0,0.00017174,2]
[401102490,1767930642628,-1224.84,0.00017178,2]
[401102492,1767930642638,-361.26,0.00017178,2]
[401102494,1767930642651,-155.79,0.00017178,2]
[401102496,1767930642660,-1389.57,0.00017195,2]
[401102498,1767930642670,-150.0,0.00017225,2]
[401102500,1767930642679,-791.3,0.0001726,2]
[401102502,1767930642688,-357.05333065,0.00017292,2]
[401102504,1767930642698,-2824.0,0.0001733,2]
[401102506,1767930642707,-1000.0,0.000174,2]
[401102508,1767930642716,-2824.0,0.00017446,2]
[401102510,1767930642726,-2351.0,0.00017497,2]
[401102512,1767930642734,-2192.09587896,0.00017529,2]
[401102514,1767930642744,-5977.60630752,0.00017529,2]
[401102516,1767930642753,-791.3,0.00017534,2]
[401102518,1767930642762,-1027.55428508,0.00017635,2]
[401102520,1767930642771,-1227.79922814,0.00017635,2]
[401102522,1767930642781,-1741.98050018,0.0001764,2]
[401102523,1767930642790,-2824.0,0.00017646,2]
[401102525,1767930642798,-1848.029,0.00017647,2]
[401102527,1767930642807,-1000.0,0.00017647,2]
[401102529,1767930642816,-1000.0,0.00017647,2]
[401102531,1767930642826,-1000.0,0.00017647,2]
[401102533,1767930642835,-346.92554585,0.00017647,2]
[401102535,1767930642844,-151.0,0.00017647,2]
[401102537,1767930642853,-574.12855637,0.00017647,2]
[401102539,1767930642863,-3841.5,0.00017653,2]
[401102541,1767930642873,-150.0,0.00017731,2]
[401102543,1767930642882,-175.89,0.00017731,2]
[401102545,1767930642892,-154.56,0.00017731,2]
[401102547,1767930642902,-478.74,0.00017731,2]
[401102549,1767930642911,-1256.78,0.00017731,2]
[401102551,1767930642920,-183.74,0.00017731,2]
[401102553,1767930642930,-179.09,0.00017731,2]
[401102555,1767930642939,-1224.84,0.00017731,2]
[401102557,1767930642948,-171.35,0.00017731,2]
[401102558,1767930642957,-150.0,0.00017731,2]
[401102560,1767930642967,-150.47,0.00017731,2]
[401102563,1767930642977,-466.71,0.00017731,2]
[401102565,1767930642986,-179.09,0.00017731,2]
[401102567,1767930642996,-150.0,0.00017731,2]
[401102569,1767930643005,-466.71,0.00017731,2]
[401102571,1767930643015,-342.6,0.00017731,2]
[401102573,1767930643027,-466.71,0.00017731,2]
[401102575,1767930643036,-1224.84,0.00017731,2]
[401102577,1767930643046,-150.0,0.00017731,2]
[401102579,1767930643056,-358.08,0.00017731,2]
[401102582,1767930643066,-150.0,0.00017731,2]
[401102584,1767930643075,-1224.84,0.00017731,2]
[401102586,1767930643084,-179.09,0.00017731,2]
[401102588,1767930643094,-1224.84,0.00017731,2]
[401102590,1767930643103,-171.35,0.00017731,2]
[401102592,1767930643113,-482.72,0.00017768,2]
[401102594,1767930643122,-491.02,0.00017768,2]
[401102596,1767930643131,-482.72,0.00017768,2]
[401102598,1767930643140,-1106.18,0.00017768,2]
[401102600,1767930643150,-2000.0,0.000178,2]
[401102602,1767930643159,-1000.0,0.000178,2]
[401102604,1767930643168,-5800.0,0.00017806,2]
[401102606,1767930643177,-791.3,0.00017808,2]
[401102608,1767930643187,-5800.0,0.00017815,2]
[401102610,1767930643196,-1002.19769,0.0001782,2]
[401102612,1767930643205,-1002.19769,0.0001782,2]
[401102614,1767930643214,-1002.1977,0.0001782,2]
[401102616,1767930643224,-1002.1977,0.0001782,2]
[401102618,1767930643233,-500.0,0.00017823,2]
[401102620,1767930643243,-500.0,0.00017823,2]
[401102621,1767930643252,-511.98797605,0.00017823,2]
[401102623,1767930643261,-5800.0,0.00017823,2]
[401102625,1767930643270,-5800.0,0.00017832,2]
[401102627,1767930643279,-5800.0,0.00017841,2]
[401102629,1767930643288,-5800.0,0.00017849,2]
[401102631,1767930643298,-2000.0,0.00017856,2]
[401102633,1767930643307,-5800.0,0.00017858,2]
[401102635,1767930643316,-5800.0,0.00017866,2]
[401102637,1767930643326,-5800.0,0.00017874,2]
[401102639,1767930643335,-5800.0,0.00017883,2]
[401102641,1767930643345,-5800.0,0.00017891,2]
[401102643,1767930643354,-1052.30784804,0.00017898,2]
[401102646,1767930643364,-245.32363988,0.00017898,2]
[401102648,1767930643373,-1052.30784804,0.00017898,2]
[401102650,1767930643384,-1052.30784804,0.00017899,2]
[401102651,1767930643393,-1052.30784804,0.00017899,2]
[401102653,1767930643402,-1052.30784804,0.000179,2]
[401102656,1767930643412,-1111.94,0.000179,2]
[401102658,1767930643421,-33584.3474,0.000179,2]
[401102660,1767930643431,-1000.0,0.000179,2]
[401102661,1767930643440,-10000.0,0.000179,2]
[401102663,1767930643449,-5800.0,0.000179,2]
[401102664,1767930643459,-2192.09587896,0.000179,2]
[401102665,1767930643468,-5977.60630752,0.000179,2]
[401102666,1767930643477,-165.2445396,0.000179,2]
[401102667,1767930643487,-1052.30784804,0.000179,2]
[401102668,1767930643497,-8170.43664708,0.000179,3]
[401102669,1767930643506,-1722.70176245,0.000179,2]
[401102670,1767930643515,-2806.06348518,0.000179,2]
[401102671,1767930643525,-303.3757132,0.000179,4]
[401102672,1767930643534,-500.0,0.000179,2]
[401102673,1767930643543,-500.0,0.000179,2]
[401102674,1767930643553,-500.0,0.000179,2]
[401102675,1767930643562,-500.0,0.000179,2]
[401102676,1767930643571,-500.0,0.000179,2]
[401102677,1767930643580,-500.0,0.000179,2]
[401102678,1767930643590,-500.0,0.000179,2]
[401102679,1767930643599,-500.0,0.000179,2]
[401102680,1767930643608,-500.0,0.000179,2]
[401102681,1767930643619,-500.0,0.000179,2]
[401102682,1767930643629,-500.0,0.000179,2]
[401102683,1767930643638,-500.0,0.000179,2]
[401102684,1767930643648,-500.0,0.000179,2]
[401102685,1767930643657,-500.0,0.000179,2]
[401102686,1767930643666,-500.0,0.000179,2]
[401102687,1767930643676,-500.0,0.000179,2]
[401102688,1767930643685,-500.0,0.000179,2]
[401102689,1767930643695,-500.0,0.000179,2]
[401102690,1767930643704,-500.0,0.000179,2]
[401102691,1767930643717,-500.0,0.000179,2]
[401102692,1767930643727,-11350.0,0.000179,2]
[401102693,1767930643736,-5888.0,0.00017944,2]
[401102694,1767930643745,-500.0,0.00017973,2]
[401102695,1767930643755,-372.6640454,0.00017973,2]
[401102696,1767930643764,-625.00819918,0.00017973,2]
[401102697,1767930643773,-500.0,0.00017973,2]
[401102698,1767930643782,-500.0,0.00017973,2]
[401102699,1767930643791,-179.20096908,0.00017973,2]
[401102700,1767930643801,-500.0,0.00017973,2]
[401102701,1767930643810,-500.0,0.00017973,2]
[401102702,1767930643819,-500.0,0.00017973,2]
[401102703,1767930643829,-501.26195682,0.00017973,2]
[401102704,1767930643838,-283.43561146,0.00017973,2]
[401102705,1767930643847,-500.0,0.00017973,2]
[401102706,1767930643857,-160.6645308,0.00017973,2]
[401102707,1767930643866,-500.36206432,0.00017973,2]
[401102708,1767930643876,-500.0,0.00017973,2]
[401102709,1767930643885,-308.1909641,0.00017973,2]
[401102710,1767930643895,-500.0,0.00017973,2]
[401102711,1767930643905,-500.0,0.00017973,2]
[401102712,1767930643914,-500.0,0.00017973,2]
[401102713,1767930643924,-506.42241375,0.00017973,2]
[401102714,1767930643933,-166.05644704,0.00017973,2]
[401102715,1767930643942,-507.65773125,0.00017973,2]
[401102716,1767930643952,-500.0,0.00017973,2]
[401102717,1767930643963,-500.0,0.00017973,2]
[401102718,1767930643973,-500.78697171,0.00017973,2]
[401102719,1767930643983,-169.10832564,0.00017973,2]
[401102720,1767930643993,-500.0,0.00017973,2]
[401102721,1767930644003,-165.3256661,0.00017973,2]
[401102722,1767930644013,-500.0,0.00017973,2]
[401102723,1767930644029,-500.0,0.00017973,2]
[401102725,1767930644038,-375.44031674,0.00017973,2]
[401102727,1767930644047,-500.24048348,0.00017973,2]
[401102729,1767930644057,-500.0,0.00017973,2]
[401102731,1767930644067,-150.0,0.00017973,2]
[401102733,1767930644076,-500.0,0.00017982,2]
[401102735,1767930644086,-219.52249285,0.00017982,2]
[401102736,1767930644096,-263.0,0.00017988,2]
[401102737,1767930644106,-206.86777706,0.0001799,2]
[401102738,1767930644115,-500.0,0.00017992,2]
[401102739,1767930644124,-500.0,0.00017992,2]
[401102740,1767930644134,-500.0,0.00017994,2]
[401102741,1767930644143,-500.0,0.00017994,2]
[401102742,1767930644152,-500.0,0.00017994,2]
[401102743,1767930644161,-500.0,0.00017994,2]
[401102744,1767930644171,-602.31786917,0.00017994,2]
[401102745,1767930644180,-150.0,0.00017994,2]
[401102746,1767930644190,-617889.7112132,0.00017998,2]
[401102747,1767930644199,-171.241574,0.00017998,2]
[401102748,1767930644210,-182.163569,0.00017998,2]
[401102749,1767930644219,-151.0,0.00017998,2]
[401102750,1767930644229,-208.546045,0.00017998,2]
[401102751,1767930644238,-151.0,0.00017998,2]
[401102752,1767930644247,-230.87744341,0.00017998,2]
[401102753,1767930644259,-151.0,0.00017998,2]
[401102754,1767930644268,-195.944753,0.00017998,2]
[401102755,1767930644277,-195.944753,0.00017998,2]
[401102756,1767930644288,-195.944753,0.00017998,2]
[401102757,1767930644297,-195.944753,0.00017998,2]
[401102758,1767930644307,-151.0,0.00017998,2]
[401102759,1767930644316,-151.0,0.00017998,2]
[401102760,1767930644326,-299.064155,0.00017998,2]
[401102761,1767930644335,-151.0,0.00017998,2]
[401102762,1767930644344,-255.331602,0.00017998,2]
[401102763,1767930644355,-151.0,0.00017998,2]
[401102764,1767930644364,-343.677655,0.00017998,2]
[401102765,1767930644374,-151.0,0.00017998,2]
[401102766,1767930644383,-343.677655,0.00017998,2]
[401102767,1767930644393,-151.0,0.00017998,2]
[401102768,1767930644403,-343.677655,0.00017998,2]
[401102769,1767930644412,-343.677655,0.00017998,2]
[401102770,1767930644422,-442.733086,0.00017998,2]
[401102771,1767930644431,-442.733086,0.00017998,2]
[401102772,1767930644441,-151.0,0.00017998,2]
[401102773,1767930644450,-365.276476,0.00017998,2]
[401102774,1767930644459,-151.0,0.00017998,2]
[401102775,1767930644468,-442.733086,0.00017998,2]
[401102776,1767930644478,-365.276476,0.00017998,2]
[401102777,1767930644487,-151.0,0.00017998,2]
[401102778,1767930644496,-442.733086,0.00017998,2]
[401102779,1767930644505,-151.0,0.00017998,2]
[401102780,1767930644514,-365.276476,0.00017998,2]
[401102781,1767930644523,-151.0,0.00017998,2]
[401102782,1767930644532,-178.163417,0.00017998,2]
[401102783,1767930644542,-151.0,0.00017998,2]
[401102784,1767930644551,-485.499554,0.00017998,2]
[401102785,1767930644560,-365.276476,0.00017998,2]
[401102786,1767930644569,-151.0,0.00017998,2]
[401102787,1767930644578,-151.0,0.00017998,2]
[401102788,1767930644587,-485.499554,0.00017998,2]
[401102789,1767930644598,-151.0,0.00017998,2]
[401102790,1767930644607,-485.499554,0.00017998,2]
[401102791,1767930644616,-485.499554,0.00017998,2]
[401102792,1767930644626,-151.0,0.00017998,2]
[401102793,1767930644635,-151.0,0.00017998,2]
[401102794,1767930644644,-151.0,0.00017998,2]
[401102795,1767930644654,-163.48789,0.00017998,2]
[401102796,1767930644664,-163.48789,0.00017998,2]
[401102797,1767930644676,-163.48789,0.00017998,2]
[401102798,1767930644685,-397.11913,0.00017998,2]
[401102799,1767930644695,-163.48789,0.00017998,2]
[401102800,1767930644704,-397.11913,0.00017998,2]
[401102801,1767930644714,-397.11913,0.00017998,2]
[401102802,1767930644724,-151.0,0.00017998,2]
[401102803,1767930644733,-397.11913,0.00017998,2]
[401102804,1767930644742,-164.028643,0.00017998,2]
[401102805,1767930644751,-164.028643,0.00017998,2]
[401102806,1767930644761,-186.51701,0.00017998,2]
[401102807,1767930644771,-164.028643,0.00017998,2]
[401102808,1767930644780,-164.028643,0.00017998,2]
[401102809,1767930644789,-151.0,0.00017998,2]
[401102810,1767930644798,-151.0,0.00017998,2]
[401102811,1767930644808,-151.0,0.00017998,2]
[401102812,1767930644817,-1158.833905,0.00017998,2]
[401102813,1767930644826,-151.0,0.00017998,2]
[401102814,1767930644836,-1158.833905,0.00017998,2]
[401102815,1767930644845,-1158.833905,0.00017998,2]
[401102816,1767930644854,-1158.833905,0.00017998,2]
[401102817,1767930644865,-151.0,0.00017998,2]
[401102818,1767930644874,-151.0,0.00017998,2]
[401102819,1767930644884,-151.0,0.00017998,2]
[401102820,1767930644893,-182.383587,0.00017998,2]
[401102821,1767930644903,-5133.456017,0.00017998,2]
[401102822,1767930644913,-5133.456017,0.00017998,2]
[401102823,1767930644923,-466.538273,0.00017998,2]
[401102824,1767930644932,-5133.456017,0.00017998,2]
[401102825,1767930644942,-466.538273,0.00017998,2]
[401102826,1767930644952,-5133.456017,0.00017998,2]
[401102827,1767930644962,-466.538273,0.00017998,2]
[401102828,1767930644972,-458.070284,0.00017998,2]
[401102829,1767930644981,-466.538273,0.00017998,2]
[401102830,1767930644991,-458.070284,0.00017998,2]
[401102831,1767930645001,-151.0,0.00017998,2]
[401102832,1767930645011,-458.070284,0.00017998,2]
[401102833,1767930645024,-159.367045,0.00017998,2]
[401102834,1767930645034,-458.070284,0.00017998,2]
[401102835,1767930645043,-1778.71196,0.00017998,2]
[401102836,1767930645052,-1778.71196,0.00017998,2]
[401102837,1767930645062,-1778.71196,0.00017998,2]
[401102838,1767930645071,-1778.71196,0.00017998,2]
[401102839,1767930645080,-151.0,0.00017998,2]
[401102840,1767930645092,-151.0,0.00017998,2]
[401102841,1767930645102,-151.0,0.00017998,2]
[401102842,1767930645111,-151.0,0.00017998,2]
[401102843,1767930645121,-288.203849,0.00017998,2]
[401102844,1767930645132,-2570.137715,0.00017998,2]
[401102845,1767930645142,-2570.137715,0.00017998,2]
[401102846,1767930645151,-2570.137715,0.00017998,2]
[401102847,1767930645160,-2570.137715,0.00017998,2]
[401102848,1767930645169,-151.0,0.00017998,2]
[401102849,1767930645179,-151.0,0.00017998,2]
[401102850,1767930645188,-151.0,0.00017998,2]
[401102851,1767930645197,-198.491542,0.00017998,2]
[401102852,1767930645207,-151.0,0.00017998,2]
[401102853,1767930645216,-198.491542,0.00017998,2]
[401102854,1767930645226,-495.519211,0.00017998,2]
[401102855,1767930645236,-192.18303,0.00017998,2]
[401102856,1767930645247,-198.491542,0.00017998,2]
[401102857,1767930645258,-495.519211,0.00017998,2]
[401102858,1767930645269,-291.761293,0.00017998,2]
[401102859,1767930645278,-198.491542,0.00017998,2]
[401102860,1767930645288,-495.519211,0.00017998,2]
[401102861,1767930645298,-495.519211,0.00017998,2]
[401102862,1767930645307,-1092.184898,0.00017998,2]
[401102863,1767930645317,-151.0,0.00017998,2]
[401102864,1767930645327,-158.022051,0.00017998,2]
[401102865,1767930645336,-1092.184898,0.00017998,2]
[401102866,1767930645346,-158.500986,0.00017998,2]
[401102867,1767930645357,-2412.934915,0.00017998,2]
[401102868,1767930645366,-415.268044,0.00017998,2]
[401102869,1767930645376,-1092.184898,0.00017998,2]
[401102870,1767930645386,-2412.934915,0.00017998,2]
[401102871,1767930645395,-1092.184898,0.00017998,2]
[401102872,1767930645405,-415.268044,0.00017998,2]
[401102873,1767930645414,-151.0,0.00017998,2]
[401102874,1767930645423,-2412.934915,0.00017998,2]
[401102875,1767930645432,-415.268044,0.00017998,2]
[401102876,1767930645441,-371.425842,0.00017998,2]
[401102877,1767930645450,-2412.934915,0.00017998,2]
[401102878,1767930645460,-415.268044,0.00017998,2]
[401102879,1767930645470,-371.425842,0.00017998,2]
[401102880,1767930645478,-151.0,0.00017998,2]
[401102881,1767930645488,-371.425842,0.00017998,2]
[401102882,1767930645498,-200.12254243,0.00017998,2]
[401102883,1767930645508,-371.425842,0.00017998,2]
[401102884,1767930645518,-2472.961077,0.00017998,2]
[401102885,1767930645527,-1021.65153,0.00017998,2]
[401102886,1767930645536,-2472.961077,0.00017998,2]
[401102887,1767930645546,-1021.65153,0.00017998,2]
[401102888,1767930645555,-2472.961077,0.00017998,2]
[401102889,1767930645565,-1021.65153,0.00017998,2]
[401102890,1767930645575,-2472.961077,0.00017998,2]
[401102891,1767930645585,-1021.65153,0.00017998,2]
[401102892,1767930645594,-187.66246,0.00017998,2]
[401102893,1767930645605,-187.66246,0.00017998,2]
[401102894,1767930645615,-151.0,0.00017998,2]
[401102895,1767930645624,-187.66246,0.00017998,2]
[401102896,1767930645634,-151.0,0.00017998,2]
[401102897,1767930645891,-187.66246,0.00017998,2]
[401102898,1767930645901,-210.06325,0.00017998,2]
[401102899,1767930645910,-151.0,0.00017998,2]
[401102900,1767930645920,-863.057783,0.00017998,2]